bitfinex/quotes_ETHUSD_20260203
["timestamp","ask_amount","ask_price","bid_price","bid_amount"]
[1770108931258,12.83844698,2318.6,2317.5,4.3149289]
[1770108931584,12.83844698,2318.6,2317.7,1.07864562]
[1770108931968,12.83844698,2318.6,2317.8,1.07860715]
[1770108932175,12.83844698,2318.6,2317.9,1.07855804]
[1770108932351,1.39165444,2318.7,2317.9,1.07855804]
[1770108932676,1.39165444,2318.7,2318.0,0.53929794]
[1770108932975,1.39165444,2318.7,2318.4,0.001]
[1770108933488,1.39165444,2318.7,2318.0,1.61780951]
[1770108933673,12.83844698,2318.9,2318.0,1.61780951]
[1770108933864,13.91654918,2318.9,2318.0,1.61780951]
[1770108934469,1.07808121,2319.0,2318.0,1.61780951]
[1770108935165,13.91643627,2319.2,2318.0,13.58409626]
[1770108935995,13.91643627,2319.2,2318.0,1.61780951]
[1770108936146,12.83844698,2319.0,2318.0,1.61780951]
[1770108937282,12.83844698,2318.3,2316.4,11.96628675]
[1770108937462,12.83844698,2317.9,2316.5,13.04550108]
[1770108937869,13.91703623,2317.9,2316.5,13.04550108]
[1770108938168,1.07858925,2317.9,2316.5,13.04550108]
[1770108938352,1.07858925,2317.9,2316.7,11.96628675]
[1770108938876,13.91703623,2317.9,2316.7,11.96628675]
[1770108939073,13.91703623,2317.9,2316.6,13.70252259]
[1770108940254,1.07858925,2317.9,2316.7,13.04540791]
[1770108940457,1.07858925,2317.9,2316.8,13.87609959]
[1770108940867,13.91703623,2317.9,2316.8,1.90981284]
[1770108941071,13.91703623,2317.9,2316.7,1.07912116]
[1770108941680,13.91703623,2317.9,2316.8,11.96628675]
[1770108942386,13.91703623,2317.9,2316.9,1.07902801]
[1770108943086,13.91703623,2317.9,2316.6,6.05272049]
[1770108943087,13.91703623,2317.9,2316.6,2.81536921]
[1770108943278,13.91703623,2317.9,2316.7,1.07910955]
[1770108943786,13.91703623,2317.9,2316.8,1.07907028]
[1770108944385,13.91703623,2317.9,2316.6,1.07916774]
[1770108945166,1.07856604,2317.9,2316.6,13.04545449]
[1770108945363,1.49973051,2317.9,2316.8,11.96628675]
[1770108945568,1.07856604,2317.9,2316.8,11.96628675]
[1770108946769,1.07856604,2317.9,2316.9,1.08002801]
[1770108946966,12.83844698,2317.8,2316.9,0.001]
[1770108947161,1.3917013,2317.7,2316.9,0.001]
[1770108947684,14.23014828,2317.7,2316.9,0.001]
[1770108948767,12.83844698,2317.5,2316.9,0.001]
[1770108949268,12.83844698,2317.5,2316.3,1.37578274]
[1770108949473,12.83844698,2317.3,2316.3,1.37578274]
[1770108950964,14.01898683,2317.2,2316.3,0.29650446]
[1770108951178,1.0788739,2317.3,2316.3,1.37581095]
[1770108951489,14.01897242,2317.3,2316.3,1.37581095]
[1770108951692,4.31494586,2317.6,2316.4,11.70272131]
[1770108951693,1.07873609,2317.6,2316.4,11.70272131]
[1770108952060,13.10464226,2317.6,2316.4,11.70272131]
[1770108952885,13.10464226,2317.6,2316.5,1.07921433]
[1770108957498,13.10464226,2317.6,2316.4,4.31685732]
[1770108957682,12.02590617,2317.4,2316.5,0.78902957]
[1770108958069,1.7458097,2317.5,2316.4,12.78198223]
[1770108958290,1.07871079,2317.6,2316.4,12.78198223]
[1770108960374,1.07871079,2317.6,2316.5,0.001]
[1770108960676,4.31392484,2318.1,2316.6,11.70272131]
[1770108960881,16.33983101,2318.1,2316.6,12.60672131]
[1770108961094,1.74183004,2318.0,2316.8,11.70272131]
[1770108961297,13.76773621,2318.0,2316.8,11.70272131]
[1770108961480,13.76773621,2318.0,2316.7,1.26077213]
[1770108962269,12.02590617,2317.8,2316.7,1.26077213]
[1770108962471,1.07874865,2317.5,2316.7,2.33984678]
[1770108962676,13.10465482,2317.5,2316.7,2.33984678]
[1770108962875,13.10465482,2317.5,2316.6,1.07914657]
[1770108963485,13.10465482,2317.5,2316.7,1.07911857]
[1770108963686,1.07872657,2317.6,2316.7,1.07911857]
[1770108964616,13.10463274,2317.6,2316.5,1.08021433]
[1770108964919,13.1043516,2318.2,2316.8,11.70272131]
[1770108965074,1.07837639,2318.3,2317.0,11.70272131]
[1770108966600,13.10428256,2318.3,2317.1,1.07893487]
[1770108968092,13.10428256,2318.3,2317.1,12.78165618]
[1770108968409,15.27740756,2318.3,2317.2,1.70973957]
[1770108968611,12.02590617,2318.2,2317.2,1.70973957]
[1770108968805,1.07843104,2318.2,2317.3,1.07884175]
[1770108969104,1.0784003,2318.3,2317.3,12.78156306]
[1770108970579,16.33905933,2318.5,2317.4,0.03772824]
[1770108970580,13.10421987,2318.5,2317.4,0.03772824]
[1770108970784,14.93643911,2318.5,2317.4,3.00093462]
[1770108974805,0.0011,2318.3,2317.4,3.00093462]
[1770108975323,0.0011,2318.3,2317.4,14.70365593]
[1770108976294,0.0011,2318.3,2317.5,11.70272131]
[1770108977313,0.0011,2318.3,2317.7,11.70272131]
[1770108977516,0.0011,2318.3,2317.8,1.27814234]
[1770108980522,0.0011,2318.3,2317.8,2.35670888]
[1770108980735,11.88877377,2318.3,2317.4,1.88443979]
[1770108980930,11.88877377,2318.3,2317.2,1.0798497]
[1770108981226,11.88877377,2318.3,2317.4,1.07875724]
[1770108981404,11.88877377,2318.3,2317.5,1.0787364]
[1770108981610,1.18887738,2318.2,2317.5,1.0787364]
[1770108982020,1.18887738,2318.2,2317.6,1.07868806]
[1770108982406,0.0011,2318.3,2317.7,1.07864526]
[1770108982607,0.0011,2318.3,2317.4,12.91883205]
[1770108983731,0.0011,2318.3,2317.2,0.001]
[1770108983732,11.88877377,2318.3,2317.2,0.001]
[1770108983891,11.88767377,2318.1,2317.2,0.001]
[1770108984500,1.07851596,2318.0,2317.2,0.001]
[1770108984905,12.96618973,2318.0,2317.2,0.001]
[1770108986526,4.31406384,2318.1,2317.2,0.001]
[1770108986527,1.07850159,2318.1,2317.2,0.001]
[1770108987521,1.07844988,2318.2,2317.2,11.84103685]
[1770108987696,1.07844988,2318.2,2317.3,1.29577]
[1770108988325,12.96612365,2318.2,2317.3,1.29577]
[1770108988541,12.96612365,2318.2,2317.2,0.001]
[1770108989730,12.96612365,2318.2,2317.4,0.001]
[1770108989933,0.0011,2318.1,2317.4,0.001]
[1770108990122,11.88877377,2318.1,2317.4,0.001]
[1770108991035,12.96618973,2318.0,2317.4,0.001]
[1770108991325,1.72813536,2317.9,2317.4,0.001]
[1770108993739,11.88767377,2317.8,2316.9,1.07899288]
[1770108994216,2.80673563,2317.9,2316.9,12.91902973]
[1770108994417,2.80670745,2317.9,2316.9,12.91902973]
[1770108994617,12.96624586,2317.9,2317.0,1.7235312]
[1770108994922,12.96624586,2317.9,2316.9,1.07899288]
[1770108995431,12.96624586,2317.9,2316.9,1.07901512]
[1770108995617,12.96624586,2317.9,2316.8,11.84003685]
[1770108998219,12.96624586,2317.9,2316.9,12.91906486]
[1770108998559,1.81844958,2317.8,2317.0,13.56355454]
[1770108998748,1.07857209,2317.9,2317.0,13.56355454]
[1770109000244,1.07960701,2318.1,2317.2,11.84003685]
[1770109001219,0.0011,2318.1,2317.2,11.84003685]
[1770109001446,1.07957943,2318.1,2317.2,11.84003685]
[1770109002042,0.0011,2318.1,2317.2,11.84003685]
[1770109002232,0.0011,2318.1,2317.3,13.13193402]
[1770109002552,0.0011,2318.1,2317.4,12.91883205]
[1770109004453,0.0011,2317.7,2317.4,12.91883205]
[1770109011755,0.0011,2317.7,2317.3,2.3707154]
[1770109011953,0.0011,2317.7,2317.3,1.07881823]
[1770109012258,0.0011,2317.7,2317.2,1.07884995]
[1770109012454,0.0011,2317.7,2317.3,1.07883709]
[1770109012755,0.0011,2318.1,2317.3,13.5776863]
[1770109012937,0.0011,2318.1,2317.4,1.7893175]
[1770109014359,0.0011,2318.1,2317.5,1.07874865]
[1770109015259,0.0011,2318.1,2317.5,13.57759786]
[1770109015746,0.0011,2318.1,2317.6,0.904]
[1770109016074,0.0011,2318.1,2317.6,13.40284921]
[1770109016239,0.0011,2318.1,2317.5,1.07874865]
[1770109016240,0.0011,2318.1,2317.7,1.44815979]
[1770109016441,0.0011,2318.1,2317.6,1.07867834]
[1770109018755,0.0011,2318.1,2317.5,4.31497719]
[1770109019663,0.0011,2318.1,2317.6,0.001]
[1770109019963,0.0011,2317.9,2317.6,0.001]
[1770109020339,0.0011,2318.1,2317.6,12.49984921]
[1770109020536,0.0011,2318.3,2317.7,12.49884921]
[1770109020763,0.0011,2318.3,2317.7,1.07865556]
[1770109021265,13.41187212,2319.0,2317.8,12.49884921]
[1770109021568,12.33377475,2318.8,2318.0,12.49884921]
[1770109021874,12.33377475,2318.6,2317.6,0.001]
[1770109022085,12.33377475,2318.4,2317.6,0.001]
[1770109022368,12.33377475,2318.4,2317.4,0.001]
[1770109022958,1.07837639,2318.3,2317.4,0.001]
[1770109023266,12.33377475,2318.2,2317.4,0.001]
[1770109025058,12.33377475,2318.0,2317.4,0.001]
[1770109025260,13.67499917,2317.9,2317.4,0.001]
[1770109026577,13.41224418,2318.1,2317.4,0.001]
[1770109028843,13.41224418,2318.1,2317.4,12.49984921]
[1770109028844,1.07846943,2318.1,2317.4,12.49984921]
[1770109029043,13.41224418,2318.1,2317.4,0.001]
[1770109031587,13.41224418,2318.1,2317.4,12.49984921]
[1770109031588,1.07846943,2318.1,2317.4,12.49984921]
[1770109031891,13.41210463,2318.4,2317.5,13.74883413]
[1770109032058,13.41210463,2318.4,2317.4,0.001]
[1770109034597,13.41210463,2318.4,2317.6,0.001]
[1770109034772,0.0011,2317.9,2317.6,0.001]
[1770109037390,0.0011,2318.1,2317.6,12.49984921]
[1770109037714,0.0011,2318.1,2317.7,1.24998492]
[1770109037868,0.0011,2318.1,2317.6,0.001]
[1770109038064,0.0011,2318.1,2317.4,0.001]
[1770109038065,12.33487475,2318.1,2317.4,0.001]
[1770109038670,1.07851596,2318.0,2317.4,0.001]
[1770109038959,1.77274546,2317.9,2317.4,0.001]
[1770109040482,1.07851596,2318.0,2317.4,0.001]
[1770109040997,4.31516384,2318.1,2317.4,0.001]
[1770109041299,4.31516384,2318.1,2317.4,12.71782658]
[1770109043498,0.0011,2318.1,2317.4,12.71782658]
[1770109045301,11.73884114,2318.1,2317.4,0.001]
[1770109045497,12.91162525,2318.0,2317.4,0.001]
[1770109045690,12.81630363,2317.9,2317.0,0.001]
[1770109045892,11.73774114,2317.7,2317.0,0.001]
[1770109048269,11.73774114,2317.5,2317.0,0.001]
[1770109049389,11.73774114,2317.5,2317.4,0.001]
[1770109049593,13.45086631,2317.5,2317.0,0.001]
[1770109050502,1.0787952,2317.4,2317.0,0.001]
[1770109050705,12.81653634,2317.4,2317.0,0.001]
[1770109051104,12.81653634,2317.4,2316.4,13.79705705]
[1770109051312,12.81653634,2317.4,2316.4,1.08023047]
[1770109051519,11.73774114,2317.2,2316.4,1.08026019]
[1770109053083,12.81667556,2317.2,2316.4,1.08026019]
[1770109054794,12.81667556,2317.2,2316.4,13.79708677]
[1770109055483,1.07868259,2317.7,2316.4,13.79708677]
[1770109055695,0.0011,2317.9,2316.9,12.71682658]
[1770109055910,0.0011,2318.1,2317.0,13.62182658]
[1770109056708,1.07958133,2318.1,2317.0,12.71682658]
[1770109057010,1.07958133,2318.1,2316.8,0.03772824]
[1770109057011,13.72232247,2318.1,2316.8,0.03772824]
[1770109057177,13.72232247,2318.1,2316.8,12.75455482]
[1770109057582,13.72232247,2318.1,2316.8,13.83361306]
[1770109058010,0.0011,2318.1,2316.8,13.83361306]
[1770109058185,1.07957382,2318.1,2316.8,13.83361306]
[1770109058395,1.07957382,2318.1,2317.0,12.71682658]
[1770109058593,1.07957007,2318.1,2317.0,12.71682658]
[1770109059618,1.07957007,2318.1,2317.2,12.71682658]
[1770109059619,0.0011,2318.1,2317.2,12.71682658]
[1770109060718,0.0011,2318.1,2317.2,13.62082658]
[1770109061090,0.0011,2318.1,2317.2,13.62182658]
[1770109061289,0.0011,2318.1,2317.4,12.71682658]
[1770109061490,0.0011,2318.1,2317.5,1.07874865]
[1770109061711,1.07832988,2318.4,2317.6,12.71682658]
[1770109062214,12.81607102,2318.4,2317.4,1.07876046]
[1770109062418,12.81607102,2318.4,2317.3,5.78540251]
[1770109062419,11.73774114,2318.2,2317.3,1.07880317]
[1770109062599,11.73774114,2318.2,2317.4,1.07878781]
[1770109062798,13.08231341,2318.2,2317.4,2.88999747]
[1770109063020,13.08231341,2318.2,2317.4,1.81120966]
[1770109063189,13.08231341,2318.2,2317.4,2.88999279]
[1770109063397,13.08231341,2318.2,2317.2,0.001]
[1770109063589,11.73774114,2318.0,2317.2,0.001]
[1770109067526,1.07856249,2317.9,2317.2,0.001]
[1770109069723,11.73774114,2318.0,2317.2,0.001]
[1770109070102,11.73774114,2317.8,2317.2,0.001]
[1770109070327,0.904,2317.9,2317.2,0.001]
[1770109070328,0.67369194,2318.0,2317.2,11.73589831]
[1770109070536,1.07845743,2318.2,2317.2,11.73589831]
[1770109071105,13.2768726,2318.2,2317.2,0.001]
[1770109071533,13.2768726,2318.2,2317.2,12.11019767]
[1770109071729,13.2768726,2318.2,2317.3,1.07884175]
[1770109072109,13.2768726,2318.2,2317.3,13.18803942]
[1770109072110,1.07845743,2318.2,2317.3,13.18803942]
[1770109072428,1.07845743,2318.2,2317.4,1.75044479]
[1770109073356,0.0011,2318.0,2317.4,1.75044479]
[1770109074238,12.15803226,2318.0,2317.4,1.75044479]
[1770109074555,12.15803226,2318.0,2317.3,1.07883426]
[1770109074702,0.0011,2318.0,2317.3,1.07883426]
[1770109076712,0.0011,2318.0,2317.3,13.18803193]
[1770109077536,0.0011,2318.0,2317.2,4.31650667]
[1770109077537,12.15803226,2318.0,2317.2,0.001]
[1770109077833,13.48179123,2318.0,2317.2,1.07988281]
[1770109079811,1.07856249,2317.9,2317.2,0.001]
[1770109084741,1.07856249,2317.9,2317.2,12.11019767]
[1770109085412,1.07856249,2317.9,2317.2,0.001]
[1770109085610,13.23549475,2317.9,2317.2,0.001]
[1770109085839,14.69153012,2317.9,2317.2,0.001]
[1770109086616,14.69153012,2317.9,2317.4,0.001]
[1770109086816,2.53459786,2317.9,2317.4,0.001]
[1770109088023,1.45603537,2317.9,2317.4,0.001]
[1770109088226,0.0011,2318.0,2317.4,12.11019767]
[1770109088429,1.07963571,2318.0,2317.4,12.11019767]
[1770109088630,0.0011,2318.0,2317.4,12.11019767]
[1770109090451,0.0011,2318.0,2317.6,12.10919767]
[1770109090617,0.0011,2318.0,2317.5,12.10919767]
[1770109090944,0.0011,2318.0,2317.6,1.21101977]
[1770109091619,0.0011,2318.0,2317.6,13.32021744]
[1770109092836,12.15803226,2318.0,2317.4,0.001]
[1770109096656,13.23658688,2318.0,2317.4,0.001]
[1770109097737,13.23658688,2318.0,2317.2,0.001]
[1770109097930,12.15693226,2317.9,2317.2,0.001]
[1770109098264,12.15693226,2317.7,2317.2,0.001]
[1770109098962,1.0787021,2317.6,2317.2,0.001]
[1770109099458,2.29063992,2317.8,2317.2,0.001]
[1770109099459,3.3692826,2317.8,2317.2,0.001]
[1770109099755,12.15693226,2317.7,2317.2,0.001]
[1770109100056,12.15693226,2317.7,2317.4,0.001]
[1770109100257,1.98404775,2317.7,2317.4,0.001]
[1770109101029,3.0627281,2317.7,2317.4,0.001]
[1770109101344,3.0627281,2317.7,2317.1,0.001]
[1770109101345,12.5156711,2317.6,2317.1,0.001]
[1770109102142,12.5156711,2317.6,2317.0,0.001]
[1770109102143,12.5156711,2317.6,2316.5,4.31680914]
[1770109102339,3.0627261,2317.7,2316.5,1.64224]
[1770109102340,12.5156711,2317.4,2316.5,1.64224]
[1770109102661,12.5156711,2317.4,2316.7,1.0791154]
[1770109102824,12.5156711,2317.4,2316.6,1.07913374]
[1770109103343,1.07884175,2317.3,2316.6,1.07913374]
[1770109104970,1.07884175,2317.3,2316.6,12.85049193]
[1770109105175,1.07884175,2317.3,2316.6,14.56723882]
[1770109105957,16.83072031,2317.5,2316.6,14.56723882]
[1770109106261,13.59441975,2317.5,2316.6,14.56723882]
[1770109106566,1.07874865,2317.5,2316.6,14.56723882]
[1770109107687,1.07874865,2317.5,2316.6,2.79588063]
[1770109107688,13.59441975,2317.5,2316.6,2.79588063]
[1770109107850,14.30659508,2317.4,2316.6,2.79588063]
[1770109108351,15.38541344,2317.4,2316.6,2.79588063]
[1770109108551,15.38541344,2317.4,2316.6,14.56723882]
[1770109108801,12.5156711,2317.3,2316.6,2.79588063]
[1770109108951,12.5156711,2317.3,2316.6,1.07913374]
[1770109109145,2.86974234,2317.4,2316.7,11.77135819]
[1770109109344,1.07881836,2317.4,2316.7,11.77135819]
[1770109109583,0.0011,2318.1,2316.7,11.77135819]
[1770109109795,0.0011,2318.1,2317.4,11.77135819]
[1770109110283,0.0011,2318.1,2317.5,12.85010684]
[1770109110451,0.0011,2318.1,2317.6,1.71651014]
[1770109110649,0.0011,2318.1,2317.6,13.48786833]
[1770109110849,0.0011,2318.2,2317.6,13.48786833]
[1770109112288,0.0011,2318.2,2317.7,12.85001375]
[1770109112981,0.0011,2318.2,2317.9,0.0039]
[1770109114483,0.0011,2318.0,2317.9,0.0039]
[1770109117588,0.0011,2318.0,2317.6,1.71651014]
[1770109117887,13.76855821,2318.0,2317.2,0.001]
[1770109118064,13.76855821,2318.0,2317.2,1.07988461]
[1770109118065,12.5167711,2318.0,2317.2,1.07988461]
[1770109119262,1.07856249,2317.9,2317.2,0.001]
[1770109119462,13.59423359,2317.9,2317.2,0.001]
[1770109120103,13.59423359,2317.9,2317.0,0.001]
[1770109120390,12.5156711,2317.7,2316.2,1.07934555]
[1770109120555,12.5156711,2317.5,2316.2,1.07934555]
[1770109120755,12.5156711,2317.5,2316.2,1.07932551]
[1770109120982,12.5156711,2317.5,2316.1,1.07936892]
[1770109121194,12.5156711,2317.5,2316.2,1.07934306]
[1770109121368,12.5156711,2317.3,2316.3,1.37580774]
[1770109122581,1.0787952,2317.4,2316.3,13.14716593]
[1770109122790,1.0787952,2317.4,2316.4,13.51779779]
[1770109124091,16.8308519,2317.5,2316.5,1.07921433]
[1770109124887,16.8308519,2317.5,2316.5,12.85057252]
[1770109125387,13.59441975,2317.5,2316.5,12.85057252]
[1770109125586,1.07874865,2317.5,2316.6,13.66276108]
[1770109126465,1.07874865,2317.5,2316.7,1.07912116]
[1770109127176,1.98273247,2317.6,2316.7,1.07912116]
[1770109127364,1.98273247,2317.6,2316.7,12.85047935]
[1770109127571,1.98273247,2317.6,2316.8,14.85444082]
[1770109127974,0.0011,2317.8,2316.9,11.77135819]
[1770109128465,0.0011,2317.8,2316.9,12.67635819]
[1770109128665,0.0011,2317.8,2317.1,11.77135819]
[1770109128867,0.0011,2317.8,2317.3,11.77135819]
[1770109129688,0.0011,2318.2,2317.3,11.77135819]
[1770109130461,0.0011,2318.2,2317.3,12.88407997]
[1770109130669,0.0011,2318.2,2317.4,1.0787952]
[1770109130966,0.0011,2318.2,2317.5,12.88407997]
[1770109131163,0.0011,2318.2,2317.6,1.39628752]
[1770109131675,0.0011,2318.2,2317.6,13.91585798]
[1770109132994,0.0011,2318.2,2317.7,1.07865556]
[1770109133368,0.905,2318.8,2317.7,13.59822602]
[1770109133965,14.23990735,2318.8,2317.7,13.59822602]
[1770109134194,12.25676281,2318.7,2317.8,2.02131358]
[1770109134692,4.31332733,2319.0,2317.8,14.54088404]
[1770109134693,0.0011,2319.0,2317.8,14.54088404]
[1770109135073,0.0011,2319.0,2318.0,12.51957046]
[1770109135289,12.25786281,2319.0,2318.1,1.3598133]
[1770109136083,12.25786281,2319.0,2317.9,13.59813295]
[1770109136805,12.25786281,2319.0,2317.9,1.07856249]
[1770109136969,12.25786281,2319.0,2317.8,1.07858248]
[1770109137306,12.25676281,2318.8,2317.7,4.31457246]
[1770109137513,12.25676281,2318.8,2317.7,16.83414292]
[1770109138596,12.25676281,2318.8,2317.7,4.31457246]
[1770109139294,1.07819036,2318.7,2317.5,16.8345464]
[1770109139490,13.33495317,2318.7,2317.6,1.79133416]
[1770109139691,13.33495317,2318.7,2317.8,0.001]
[1770109140105,12.25676281,2318.7,2317.8,0.001]
[1770109140402,12.25676281,2318.7,2317.8,12.52057046]
[1770109140703,12.25676281,2318.7,2317.9,1.25205705]
[1770109141703,0.66284831,2318.8,2318.0,1.07851596]
[1770109141893,12.25786281,2318.8,2318.0,1.07851596]
[1770109142200,13.33601042,2318.8,2318.0,1.07851596]
[1770109142400,13.33601042,2318.8,2317.9,1.0785624]
[1770109143817,13.33601042,2318.8,2317.8,0.001]
[1770109146299,12.25786281,2318.8,2317.8,12.52057046]
[1770109146500,12.25786281,2318.8,2317.9,1.3599226]
[1770109146690,12.25786281,2318.8,2317.9,13.87949306]
[1770109147521,0.0011,2318.8,2317.9,13.87949306]
[1770109147698,13.33602048,2318.8,2317.9,1.3599226]
[1770109147899,15.10095742,2318.8,2317.8,0.001]
[1770109148095,14.02279975,2318.8,2317.8,0.001]
[1770109148290,15.10094417,2318.8,2317.8,0.001]
[1770109148690,14.02279975,2318.8,2317.8,0.001]
[1770109149326,15.10094537,2318.8,2317.8,0.001]
[1770109149503,12.25676281,2318.6,2317.8,0.001]
[1770109152121,12.25676281,2318.6,2318.0,0.001]
[1770109152620,12.25786281,2318.6,2318.0,0.001]
[1770109154520,12.25786281,2318.6,2317.8,0.001]
[1770109154521,14.24011079,2318.6,2317.8,0.001]
[1770109154703,12.25676281,2318.4,2317.8,0.001]
[1770109156022,12.25676281,2318.2,2317.8,0.001]
[1770109159411,2.04944075,2318.5,2317.8,0.001]
[1770109160221,2.04944075,2318.5,2317.8,1.07960902]
[1770109160503,1.62895766,2318.4,2317.8,1.07960902]
[1770109164024,13.64169455,2318.4,2317.8,1.07960902]
[1770109165224,14.72002565,2318.4,2317.8,0.001]
[1770109166334,14.72002565,2318.4,2318.0,0.001]
[1770109166535,12.01383689,2318.2,2318.0,0.001]
[1770109166731,12.01383689,2318.2,2318.0,0.0002]
[1770109166908,0.0011,2318.2,2318.0,0.0002]
[1770109167327,12.01383689,2318.2,2318.0,0.0002]
[1770109167611,12.01383689,2318.2,2317.8,0.0002]
[1770109168226,13.32316383,2318.2,2317.8,0.0002]
[1770109171637,1.31042694,2318.2,2317.8,0.0002]
[1770109171840,0.0011,2318.2,2317.8,0.0002]
[1770109176538,12.01383689,2318.2,2317.8,0.0002]
[1770109176735,12.01383689,2318.2,2317.5,0.001]
[1770109176938,12.01383689,2318.2,2317.5,1.07974228]
[1770109177647,12.01383689,2318.2,2317.5,0.001]
[1770109177822,1.20259369,2318.2,2317.5,12.12402038]
[1770109179937,1.20259369,2318.2,2318.0,0.001]
[1770109180948,13.21533058,2318.2,2318.0,0.001]
[1770109181738,1.20259369,2318.2,2318.0,0.001]
[1770109182319,1.20259369,2318.2,2317.8,0.001]
[1770109187456,0.0011,2318.2,2317.8,0.001]
[1770109188160,0.0011,2318.2,2317.8,12.12402038]
[1770109188529,0.0011,2318.2,2317.9,1.07856249]
[1770109189841,0.0011,2318.2,2317.9,13.20158287]
[1770109191966,0.0011,2318.4,2318.0,12.17916599]
[1770109192166,0.0011,2318.8,2318.1,13.50493884]
[1770109192735,12.17471932,2318.6,2318.1,1.32577285]
[1770109192941,20.00678781,2318.5,2318.0,1.07850859]
[1770109194166,20.00678781,2318.5,2318.0,1.07950859]
[1770109194668,0.0011,2318.2,2318.0,1.07950859]
[1770109194845,0.0011,2318.2,2318.0,0.001]
[1770109200270,1.21868193,2318.2,2318.0,0.001]
[1770109200460,0.0011,2318.2,2318.0,0.001]
[1770109200665,13.25291123,2318.7,2318.0,0.001]
[1770109200970,12.17471932,2318.7,2318.0,12.18016599]
[1770109201471,13.25291134,2318.7,2318.0,13.25864056]
[1770109201673,15.88280023,2318.7,2318.0,13.25864056]
[1770109202055,12.17471932,2318.2,2317.8,0.001]
[1770109202273,20.0030906,2318.1,2317.5,1.0797313]
[1770109202451,20.0030906,2318.1,2317.5,1.07972607]
[1770109202647,20.0030906,2317.9,2317.1,1.0788933]
[1770109202880,12.17471932,2317.6,2316.9,1.07898984]
[1770109203648,7.82837128,2317.5,2316.8,1.08004283]
[1770109203845,12.17471932,2317.4,2316.8,1.08004283]
[1770109204666,0.904,2317.8,2316.8,13.25920882]
[1770109205174,12.17471932,2318.1,2316.8,5.81404283]
[1770109205368,12.17471932,2318.3,2316.9,13.19598301]
[1770109205570,13.07871932,2318.3,2316.9,13.19598301]
[1770109205772,0.904,2318.3,2317.1,12.17916599]
[1770109205978,12.17471932,2318.2,2317.2,13.50498073]
[1770109207352,12.17471932,2318.2,2317.7,0.001]
[1770109207547,3.82940956,2318.3,2317.7,0.001]
[1770109208169,12.17471932,2318.2,2317.7,0.001]
[1770109208369,1.60041289,2318.1,2317.7,0.001]
[1770109211064,0.904,2318.3,2317.7,12.18016599]
[1770109211465,0.904,2318.3,2317.7,0.001]
[1770109211659,1.98237712,2318.3,2317.7,0.001]
[1770109211861,0.0011,2318.4,2317.7,12.18016599]
[1770109212284,0.0011,2318.6,2317.8,13.25777501]
[1770109212485,0.0011,2318.6,2317.9,13.9364871]
[1770109212979,0.0011,2318.6,2317.9,1.75732111]
[1770109214269,0.0011,2318.6,2318.0,1.07851596]
[1770109214781,0.0011,2318.6,2318.0,13.25768195]
[1770109215781,0.0011,2318.8,2318.0,1.07851596]
[1770109215962,0.0011,2319.0,2318.2,12.17916599]
[1770109216467,0.0011,2319.0,2318.3,1.07837639]
[1770109216668,12.17581932,2319.0,2318.3,1.07837639]
[1770109217766,0.0011,2319.2,2318.4,12.17916599]
[1770109217970,0.0011,2319.2,2318.5,13.50869305]
[1770109218819,0.0011,2319.2,2318.6,1.07823686]
[1770109218996,12.17581932,2319.2,2318.5,1.32952706]
[1770109219298,12.17581932,2319.2,2318.5,2.40780823]
[1770109220690,0.0011,2318.8,2318.5,2.40780823]
[1770109220896,0.0011,2318.8,2318.6,1.75034287]
[1770109221999,0.0011,2318.8,2318.6,0.67211243]
[1770109222202,0.0011,2318.8,2317.9,13.34387189]
[1770109222406,0.0011,2318.8,2318.4,1.0783198]
[1770109222700,0.0011,2318.8,2318.5,1.07827964]
[1770109222860,0.0011,2318.8,2318.2,13.5182948]
[1770109223486,0.0011,2319.0,2318.3,12.43987189]
[1770109223677,0.0011,2319.0,2318.5,12.43987189]
[1770109224876,0.0011,2319.2,2318.7,12.43987189]
[1770109226996,0.0011,2319.2,2318.8,1.07814386]
[1770109227790,0.0011,2319.2,2318.8,13.51801575]
[1770109230408,0.0011,2319.2,2318.8,1.07814386]
[1770109230706,0.0011,2319.2,2318.9,0.53907193]
[1770109232810,0.0011,2319.2,2319.0,1.07805088]
[1770109235007,0.0011,2319.2,2318.9,4.31238275]
[1770109235008,0.0011,2319.2,2318.9,12.43987189]
[1770109235983,0.0011,2319.2,2318.8,0.001]
[1770109236296,0.0011,2319.2,2318.8,12.44087189]
[1770109236494,0.0011,2319.2,2318.9,1.35190623]
[1770109237087,12.40723609,2319.2,2318.9,2.42997108]
[1770109237291,0.0011,2319.2,2318.9,1.07806485]
[1770109237690,12.19023609,2319.4,2318.9,1.07806485]
[1770109238218,0.0011,2319.6,2318.9,1.07806485]
[1770109238219,12.40723609,2319.6,2318.9,1.07806485]
[1770109239225,12.40723609,2319.6,2318.8,16.75326456]
[1770109239226,0.0011,2319.6,2318.8,16.75326456]
[1770109239714,0.0011,2319.6,2318.9,12.43987189]
[1770109239910,0.0011,2319.6,2319.0,2.57932646]
[1770109240085,0.0011,2319.6,2319.0,0.904]
[1770109240292,12.4057987,2319.7,2319.0,0.904]
[1770109241393,12.4057987,2319.7,2319.1,1.07800439]
[1770109242915,0.0011,2320.0,2319.1,1.07800439]
[1770109243113,0.0011,2320.2,2319.6,0.03772824]
[1770109243321,12.40723609,2320.2,2319.6,1.11547015]
[1770109243924,12.40723609,2320.2,2319.6,1.7108168]
[1770109245026,13.48476291,2320.2,2319.2,1.07791436]
[1770109245237,13.48476291,2320.2,2319.3,1.07790674]
[1770109245392,13.48476291,2320.2,2319.0,1.07805088]
[1770109246614,13.48476291,2320.2,2319.0,1.07905088]
[1770109246810,13.48476291,2320.2,2319.0,13.51892277]
[1770109247014,12.40723609,2320.0,2319.1,1.7869029]
[1770109248335,12.40723609,2320.0,2319.2,1.07795791]
[1770109248995,12.40723609,2320.0,2319.0,0.001]
[1770109248996,13.48483173,2320.0,2319.0,0.001]
[1770109249198,13.48483173,2320.0,2318.5,0.001]
[1770109249199,12.40613609,2319.8,2318.5,0.001]
[1770109250332,12.40613609,2319.8,2318.5,1.07924156]
[1770109250648,12.65104743,2319.6,2318.5,0.001]
[1770109250919,12.65104743,2319.4,2318.5,0.001]
[1770109251830,12.52654794,2319.2,2318.1,1.07846943]
[1770109252525,12.52654794,2319.0,2317.8,0.001]
[1770109254526,12.52654794,2318.8,2317.8,0.001]
[1770109256815,12.52654794,2318.6,2317.8,0.001]
[1770109257015,14.31829792,2318.6,2317.8,0.54062778]
[1770109258022,14.31829792,2318.6,2317.8,0.001]